fUSD/lending_fUSD_20240427
["ID","MTS","AMOUNT","RATE_DAILY","PERIOD"]
[323723431,1714201841074,-506.68883206,0.00011879,2]
[323723432,1714201841083,-508.64678204,0.00011879,2]
[323723433,1714201841092,-500.50557794,0.00011879,2]
[323723434,1714201841101,-500.0,0.00011879,2]
[323723435,1714201841110,-502.96758309,0.00011879,2]
[323723436,1714201841119,-500.0,0.00011879,2]
[323723437,1714201841128,-500.0,0.00011879,2]
[323723438,1714201841141,-510.04271242,0.00011879,2]
[323723439,1714201841150,-500.0,0.00011879,2]
[323723440,1714201841160,-500.0,0.00011879,2]
[323723441,1714201841170,-500.0,0.00011879,2]
[323723442,1714201841179,-500.0,0.00011879,2]
[323723443,1714201841187,-500.0,0.00011879,2]
[323723444,1714201841197,-337.85090234,0.00011879,2]
[323723445,1714201841207,-500.0,0.00011879,2]
[323723446,1714201841218,-500.0,0.00011879,2]
[323723447,1714201841226,-512.68814636,0.00011879,2]
[323723448,1714201841236,-518.07140016,0.00011879,2]
[323723449,1714201841245,-508.78929275,0.00011879,2]
[323723450,1714201841254,-502.07018919,0.00011879,2]
[323723451,1714201841263,-536.57093971,0.00011879,2]
[323723452,1714201841272,-504.09227165,0.00011879,2]
[323723453,1714201841282,-500.0,0.00011879,2]
[323723454,1714201841291,-501.04143395,0.00011879,2]
[323723455,1714201841301,-500.0,0.00011879,2]
[323723456,1714201841310,-500.0,0.00011879,2]
[323723457,1714201841319,-500.0,0.00011879,2]
[323723458,1714201841328,-500.0,0.00011879,2]
[323723459,1714201841338,-500.0,0.00011879,2]
[323723460,1714201841347,-243.68271492,0.00011879,2]
[323723461,1714201841357,-500.0,0.00011879,2]
[323723462,1714201841366,-378.20782051,0.00011879,2]
[323723463,1714201841375,-500.0,0.00011879,2]
[323723464,1714201841385,-500.0,0.00011879,2]
[323723465,1714201841395,-500.0,0.00011879,2]
[323723466,1714201841404,-500.0,0.00011879,2]
[323723467,1714201841413,-500.0,0.00011879,2]
[323723468,1714201841422,-598.05,0.00011879,2]
[323723469,1714201841432,-500.0,0.00011879,2]
[323723470,1714201841441,-500.0,0.00011879,2]
[323723471,1714201841450,-400.98429093,0.00011879,2]
[323723472,1714201841460,-500.0,0.00011879,2]
[323723473,1714201841470,-500.0,0.00011879,2]
[323723474,1714201841479,-977.51,0.00011879,2]
[323723475,1714201841488,-500.0,0.00011879,2]
[323723476,1714201841498,-500.0,0.00011879,2]
[323723477,1714201841507,-500.0,0.00011879,2]
[323723478,1714201841517,-500.0,0.00011879,2]
[323723479,1714201841526,-500.0,0.00011879,2]
[323723480,1714201841535,-500.0,0.00011879,2]
[323723481,1714201841544,-500.0,0.00011879,2]
[323723482,1714201841554,-500.0,0.00011879,2]
[323723483,1714201841563,-555.96636705,0.00011879,2]
[323723484,1714201841573,-877.33,0.00011879,2]
[323723485,1714201841582,-496.24739114,0.00011879,2]
[323723486,1714201841591,-546.63,0.00011879,2]
[323723487,1714201841600,-500.0,0.00011879,2]
[323723488,1714201841609,-500.0,0.00011879,2]
[323723489,1714201841618,-759.62,0.00011879,2]
[323723490,1714201841627,-500.0,0.00011879,2]
[323723491,1714201841635,-295.42729781,0.00011879,2]
[323723492,1714201841645,-479.33611811,0.00011879,2]
[323723493,1714201841655,-500.0,0.00011879,2]
[323723494,1714201841664,-500.0,0.00011879,2]
[323723495,1714201841673,-500.0,0.00011879,2]
[323723496,1714201841682,-509.33083823,0.00011879,2]
[323723497,1714201841691,-150.0,0.00011879,2]
[323723498,1714201841700,-500.0,0.00011879,2]
[323723499,1714201841709,-500.0,0.00011879,2]
[323723500,1714201841718,-500.0,0.00011879,2]
[323723501,1714201841727,-516.9888831,0.00011879,2]
[323723502,1714201841737,-500.0,0.00011879,2]
[323723503,1714201841746,-323.12917605,0.00011879,2]
[323723504,1714201841756,-598.84083864,0.00011879,2]
[323723505,1714201841766,-500.0,0.00011879,2]
[323723506,1714201841775,-500.0,0.00011879,2]
[323723507,1714201841785,-503.78081613,0.00011879,2]
[323723508,1714201841795,-500.0,0.00011879,2]
[323723509,1714201841806,-514.99536315,0.00011879,2]
[323723510,1714201841817,-508.58578364,0.00011879,2]
[323723511,1714201841826,-542.59678638,0.00011879,2]
[323723512,1714201841836,-500.0,0.00011879,2]
[323723513,1714201841845,-500.0,0.00011879,2]
[323723514,1714201841854,-500.0,0.00011879,2]
[323723515,1714201841863,-500.0,0.00011879,2]
[323723516,1714201841872,-500.0,0.00011879,2]
[323723517,1714201841881,-512.86627891,0.00011879,2]
[323723518,1714201841890,-557.09236062,0.00011879,2]
[323723519,1714201841899,-500.0,0.00011879,2]
[323723520,1714201841909,-599.25,0.00011879,2]
[323723521,1714201841918,-500.0,0.00011879,2]
[323723522,1714201841928,-437.97910558,0.00011879,2]
[323723523,1714201841938,-500.0,0.00011879,2]
[323723524,1714201841949,-500.0,0.00011879,2]
[323723525,1714201841959,-500.0,0.00011879,2]
[323723526,1714201841971,-500.0,0.00011879,2]
[323723527,1714201841980,-516.61320659,0.00011879,2]
[323723528,1714201841990,-500.0,0.00011879,2]
[323723529,1714201841999,-500.0,0.00011879,2]
[323723530,1714201842009,-500.0,0.00011879,2]
[323723531,1714201842020,-500.0,0.00011879,2]
[323723532,1714201842029,-298.70710533,0.00011879,2]
[323723533,1714201842039,-505.11494814,0.00011879,2]
[323723534,1714201842050,-500.0,0.00011879,2]
[323723535,1714201842058,-500.0,0.00011879,2]
[323723536,1714201842067,-164.7599729,0.00011879,2]
[323723537,1714201842076,-500.0,0.00011879,2]
[323723538,1714201842086,-500.0,0.00011879,2]
[323723539,1714201842096,-169.35,0.00011879,2]
[323723540,1714201842107,-500.0,0.00011879,2]
[323723541,1714201842117,-500.0,0.00011879,2]
[323723542,1714201842127,-500.0,0.00011879,2]
[323723543,1714201842139,-248.10862131,0.00011879,2]
[323723544,1714201842149,-636.39417344,0.00011879,2]
[323723545,1714201842158,-809.88,0.00011879,2]
[323723546,1714201842167,-500.0,0.00011879,2]
[323723547,1714201842176,-500.0,0.00011879,2]
[323723548,1714201842186,-500.0,0.00011879,2]
[323723549,1714201842195,-508.34458441,0.00011879,2]
[323723550,1714201842204,-500.0,0.00011879,2]
[323723551,1714201842215,-521.66140872,0.00011879,2]
[323723552,1714201842224,-430.73524756,0.00011879,2]
[323723553,1714201842233,-500.0,0.00011879,2]
[323723554,1714201842244,-500.0,0.00011879,2]
[323723555,1714201842254,-413.995674,0.00011879,2]
[323723556,1714201842263,-413.995674,0.00011879,2]
[323723557,1714201842272,-423.07877405,0.00011879,2]
[323723558,1714201842281,-252.98,0.00011879,2]
[323723559,1714201842290,-500.0,0.00011879,2]
[323723560,1714201842300,-151.0,0.00011879,2]
[323723561,1714201842309,-500.0,0.00011879,2]
[323723562,1714201842318,-217.21460128,0.00011879,2]
[323723563,1714201842328,-500.0,0.00011879,2]
[323723564,1714201842338,-311.77747284,0.00011879,2]
[323723565,1714201842347,-500.0,0.00011879,2]
[323723566,1714201842357,-500.0,0.00011879,2]
[323723567,1714201842366,-762.96,0.00011879,2]
[323723568,1714201842375,-177.63975844,0.00011879,2]
[323723569,1714201842385,-279.546613,0.00011879,2]
[323723570,1714201842395,-279.546613,0.00011879,2]
[323723571,1714201842405,-151.0,0.00011879,2]
[323723572,1714201842414,-500.0,0.00011879,2]
[323723573,1714201842423,-401.47454982,0.00011879,2]
[323723574,1714201842433,-151.0,0.00011879,2]
[323723575,1714201842443,-500.0,0.00011879,2]
[323723576,1714201842453,-500.0,0.00011879,2]
[323723577,1714201842462,-500.0,0.00011879,2]
[323723578,1714201842472,-500.0,0.00011879,2]
[323723579,1714201842481,-512.59,0.00011879,2]
[323723580,1714201842490,-500.0,0.00011879,2]
[323723581,1714201842499,-513.23362021,0.00011879,2]
[323723582,1714201842509,-500.0,0.00011879,2]
[323723583,1714201842518,-500.0,0.00011879,2]
[323723584,1714201842527,-500.0,0.00011879,2]
[323723585,1714201842536,-506.69159287,0.00011879,2]
[323723586,1714201842545,-500.0,0.00011879,2]
[323723587,1714201842554,-500.0,0.00011879,2]
[323723588,1714201842563,-677.32,0.00011879,2]
[323723589,1714201842571,-500.0,0.00011879,2]
[323723590,1714201842580,-500.0,0.00011879,2]
[323723591,1714201842589,-500.0,0.00011879,2]
[323723592,1714201842598,-500.0,0.00011879,2]
[323723593,1714201842607,-500.0,0.00011879,2]
[323723594,1714201842619,-500.0,0.00011879,2]
[323723595,1714201842630,-500.0,0.00011879,2]
[323723596,1714201842639,-500.0,0.00011879,2]
[323723597,1714201842649,-500.0,0.00011879,2]
[323723598,1714201842658,-292.29,0.00011879,2]
[323723599,1714201842667,-500.0,0.00011879,2]
[323723600,1714201842676,-500.0,0.00011879,2]
[323723601,1714201842686,-500.0,0.00011879,2]
[323723602,1714201842695,-185.79822142,0.00011879,2]
[323723603,1714201842704,-453.71221967,0.00011879,2]
[323723604,1714201842713,-500.0,0.00011879,2]
[323723605,1714201842722,-500.0,0.00011879,2]
[323723606,1714201842732,-358.110294,0.00011879,2]
[323723607,1714201842741,-358.110294,0.00011879,2]
[323723608,1714201842750,-500.0,0.00011879,2]
[323723609,1714201842759,-771.97,0.00011879,2]
[323723610,1714201842768,-151.0,0.00011879,2]
[323723611,1714201842778,-922.49,0.00011879,2]
[323723612,1714201842787,-500.0,0.00011879,2]
[323723613,1714201842796,-500.0,0.00011879,2]
[323723614,1714201842805,-513.26783564,0.00011879,2]
[323723615,1714201842815,-160.28503901,0.00011879,2]
[323723616,1714201842825,-500.0,0.00011879,2]
[323723617,1714201842835,-500.0,0.00011879,2]
[323723618,1714201842844,-365.46,0.00011879,2]
[323723619,1714201842854,-500.0,0.00011879,2]
[323723620,1714201842863,-500.0,0.00011879,2]
[323723621,1714201842872,-500.0,0.00011879,2]
[323723622,1714201842881,-500.0,0.00011879,2]
[323723623,1714201842889,-500.0,0.00011879,2]
[323723624,1714201842899,-500.0,0.00011879,2]
[323723625,1714201842908,-500.0,0.00011879,2]
[323723626,1714201842917,-500.0,0.00011879,2]
[323723628,1714201842926,-500.0,0.00011879,2]
[323723630,1714201842935,-500.0,0.00011879,2]
[323723632,1714201842944,-500.0,0.00011879,2]
[323723634,1714201842953,-500.0,0.00011879,2]
[323723636,1714201842962,-500.0,0.00011879,2]
[323723638,1714201842971,-527.6,0.00011879,2]
[323723640,1714201842980,-564.86582188,0.00011879,2]
[323723642,1714201842989,-500.0,0.00011879,2]
[323723644,1714201842999,-500.0,0.00011879,2]
[323723646,1714201843008,-151.0,0.00011879,2]
[323723647,1714201843017,-500.0,0.00011879,2]
[323723648,1714201843026,-670.61,0.00011879,2]
[323723649,1714201843035,-500.0,0.00011879,2]
[323723650,1714201843045,-500.0,0.00011879,2]
[323723651,1714201843054,-500.0,0.00011879,2]
[323723652,1714201843064,-500.0,0.00011879,2]
[323723653,1714201843073,-2528.03,0.00011879,2]
[323723654,1714201843082,-500.0,0.00011879,2]
[323723655,1714201843092,-500.0,0.00011879,2]
[323723656,1714201843101,-500.0,0.00011879,2]
[323723657,1714201843110,-500.0,0.00011879,2]
[323723658,1714201843119,-500.0,0.00011879,2]
[323723659,1714201843128,-500.0,0.00011879,2]
[323723660,1714201843141,-1324.18,0.00011879,2]
[323723661,1714201843150,-500.0,0.00011879,2]
[323723662,1714201843159,-234.89988695,0.00011879,2]
[323723664,1714201843168,-500.0,0.00011879,2]
[323723667,1714201843177,-500.0,0.00011879,2]
[323723670,1714201843186,-500.0,0.00011879,2]
[323723672,1714201843196,-511.31590185,0.00011879,2]
[323723673,1714201843205,-500.0,0.00011879,2]
[323723674,1714201843216,-500.0,0.00011879,2]
[323723675,1714201843226,-500.0,0.00011879,2]
[323723676,1714201843234,-500.0,0.00011879,2]
[323723677,1714201843244,-500.0,0.00011879,2]
[323723678,1714201843254,-500.0,0.00011879,2]
[323723679,1714201843264,-376.45501078,0.00011879,2]
[323723680,1714201843273,-2178.4,0.00011879,2]
[323723681,1714201843282,-500.0,0.00011879,2]
[323723682,1714201843292,-500.0,0.00011879,2]
[323723683,1714201843301,-500.0,0.00011879,2]
[323723684,1714201843311,-500.0,0.00011879,2]
[323723685,1714201843320,-500.0,0.00011879,2]
[323723686,1714201843329,-500.0,0.00011879,2]
[323723687,1714201843338,-500.0,0.00011879,2]
[323723688,1714201843348,-352929.67842083,0.0001188,2]
[323723689,1714201843370,-95869.48363788,0.0001188,2]
[323723690,1714201843824,-957.25034622,0.0001188,2]
[323723691,1714201843835,-4009.64328,0.0001188,2]
[323723692,1714201843847,-375.4437815,0.0001188,2]
[323723694,1714201846229,-500.0,0.00011878,2]
[323723695,1714201846239,-500.0,0.00011878,2]
[323723696,1714201846249,-212.13922195,0.00011878,2]
[323723697,1714201846259,-229.54081569,0.00011879,2]
[323723698,1714201846439,-294.893339,0.00011879,2]
[323723699,1714201846449,-175.509266,0.00011879,2]
[323723700,1714201846458,-249.55538259,0.00011879,2]
[323723709,1714202162788,1000.0,0.0002375,90]
[323723710,1714202204991,1406.63,8.5e-05,2]
[323723711,1714202275244,1055.86,0.00025,120]
[323723740,1714203032479,-706.80422125,9.084e-05,2]
[323723741,1714203032490,-413.13,9.085e-05,2]
[323723742,1714203032500,-150.0,0.00010899,2]
[323723743,1714203032510,-155.0,0.000109,2]
[323723744,1714203032521,-7836.14721092,0.000109,2]
[323723745,1714203032534,-363.20539468,0.000109,2]
[323723746,1714203032559,-976.73586657,0.000109,2]
[323723747,1714203032585,-561.51132701,0.000109,2]
[323723748,1714203032643,-262.40020082,0.000109,2]
[323723749,1714203032653,-237.59979918,0.00010938,2]
[323723750,1714203032664,-461.29020082,0.00010938,2]
[323723751,1714203032673,-118.68823118,0.00010958,2]
[323723752,1714203032685,-70.27176882,0.00010958,2]
[323723753,1714203032694,-447.62,0.00010967,2]
[323723755,1714203032703,-155.85077899,0.0001104,2]
[323723757,1714203032712,-413.13,0.00011348,2]
[323723758,1714203032721,-778.81994514,0.00011679,2]
[323723759,1714203032731,-1149.86250347,0.00011679,2]
[323723776,1714203038543,-8012.10883084,0.00011679,2]
[323723777,1714203038555,-1321.75329039,0.00011759,2]
[323723778,1714203038567,-3000.0,0.0001176,2]
[323723779,1714203038577,-167.0998,0.00011779,2]
[323723780,1714203038587,-10000.0,0.00011779,2]
[323723781,1714203038599,-2617.81764332,0.0001178,2]
[323723782,1714203038610,-1000.0,0.00011783,2]
[323723783,1714203038621,-500.0,0.00011783,2]
[323723784,1714203038632,-1000.0,0.00011784,2]
[323723785,1714203038643,-1000.0,0.00011784,2]
[323723786,1714203038654,-500.0,0.00011784,2]
[323723787,1714203038665,-500.0,0.00011784,2]
[323723788,1714203038677,-181.15643786,0.00011878,2]
[323723789,1714203038689,-686.02705259,0.00011878,2]
[323723790,1714203038701,-155.0,0.00011878,2]
[323723791,1714203038712,-500.0,0.00011878,2]
[323723792,1714203038722,-500.0,0.00011878,2]
[323723793,1714203038732,-500.0,0.00011878,2]
[323723794,1714203038742,-500.0,0.00011878,2]
[323723795,1714203038753,-500.0,0.00011878,2]
[323723796,1714203038766,-500.0,0.00011878,2]
[323723797,1714203038778,-500.0,0.00011878,2]
[323723798,1714203038788,-500.0,0.00011878,2]
[323723799,1714203038800,-484.8,0.00011878,2]
[323723800,1714203038813,-448.22,0.00011878,2]
[323723801,1714203038824,-590.90924885,0.00011878,2]
[323723802,1714203038834,-500.0,0.00011878,2]
[323723803,1714203038846,-500.0,0.00011878,2]
[323723804,1714203038857,-500.0,0.00011878,2]
[323723806,1714203038868,-500.0,0.00011878,2]
[323723807,1714203038878,-500.0,0.00011878,2]
[323723808,1714203038889,-500.0,0.00011878,2]
[323723809,1714203038900,-500.0,0.00011878,2]
[323723810,1714203038911,-500.0,0.00011878,2]
[323723811,1714203038921,-349.6670991,0.00011878,2]
[323723812,1714203038932,-500.0,0.00011878,2]
[323723813,1714203038945,-539.32764996,0.00011878,2]
[323723814,1714203038956,-500.0,0.00011878,2]
[323723815,1714203038968,-514.80698232,0.00011878,2]
[323723816,1714203038980,-500.0,0.00011878,2]
[323723817,1714203038991,-526.74133551,0.00011878,2]
[323723818,1714203039003,-500.0,0.00011878,2]
[323723819,1714203039014,-545.5,0.00011878,2]
[323723820,1714203039024,-500.0,0.00011878,2]
[323723821,1714203039033,-2031.49,0.00011878,2]
[323723822,1714203039043,-500.0,0.00011878,2]
[323723823,1714203039053,-746.64,0.00011878,2]
[323723824,1714203039064,-500.0,0.00011878,2]
[323723825,1714203039074,-500.0,0.00011878,2]
[323723826,1714203039086,-500.0,0.00011878,2]
[323723827,1714203039098,-500.0,0.00011878,2]
[323723828,1714203039109,-500.0,0.00011878,2]
[323723829,1714203039122,-500.0,0.00011878,2]
[323723830,1714203039133,-500.0,0.00011878,2]
[323723831,1714203039145,-500.0,0.00011878,2]
[323723832,1714203039155,-500.0,0.00011878,2]
[323723833,1714203039167,-649.21,0.00011878,2]
[323723834,1714203039177,-500.0,0.00011879,2]
[323723835,1714203039189,-502.07018919,0.00011879,2]
[323723836,1714203039199,-487.97,0.00011879,2]
[323723837,1714203039212,-500.0,0.00011879,2]
[323723838,1714203039223,-512.68814636,0.00011879,2]
[323723839,1714203039233,-500.0,0.00011879,2]
[323723840,1714203039244,-500.0,0.00011879,2]
[323723841,1714203039256,-500.0,0.00011879,2]
[323723842,1714203039266,-500.0,0.00011879,2]
[323723843,1714203039277,-500.0,0.00011879,2]
[323723844,1714203039287,-524.01055697,0.00011879,2]
[323723845,1714203039298,-936.78,0.00011879,2]
[323723846,1714203039308,-507.83,0.00011879,2]
[323723847,1714203039318,-500.0,0.00011879,2]
[323723848,1714203039328,-500.0,0.00011879,2]
[323723849,1714203039339,-500.0,0.00011879,2]
[323723850,1714203039349,-500.0,0.00011879,2]
[323723851,1714203039360,-245.81579714,0.00011879,2]
[323723852,1714203039371,-513.6123896,0.00011879,2]
[323723853,1714203039381,-500.0,0.00011879,2]
[323723854,1714203039391,-500.0,0.00011879,2]
[323723855,1714203039401,-323.12917605,0.00011879,2]
[323723856,1714203039411,-624.87910513,0.00011879,2]
[323723857,1714203039421,-466.12,0.00011879,2]
[323723858,1714203039432,-500.0,0.00011879,2]
[323723859,1714203039442,-351.83786239,0.00011879,2]
[323723860,1714203039452,-500.0,0.00011879,2]
[323723861,1714203039462,-500.0,0.00011879,2]
[323723862,1714203039471,-500.0,0.00011879,2]
[323723863,1714203039485,-500.0,0.00011879,2]
[323723864,1714203039495,-517.0,0.00011879,2]
[323723865,1714203039505,-624.64851218,0.00011879,2]
[323723866,1714203039515,-500.0,0.00011879,2]
[323723867,1714203039526,-500.0,0.00011879,2]
[323723868,1714203039536,-500.0,0.00011879,2]
[323723869,1714203039546,-776.14,0.00011879,2]
[323723870,1714203039557,-645.05692784,0.00011879,2]
[323723871,1714203039568,-500.0,0.00011879,2]
[323723872,1714203039578,-233.51992673,0.00011879,2]
[323723873,1714203039589,-500.0,0.00011879,2]
[323723874,1714203039599,-500.0,0.00011879,2]
[323723875,1714203039609,-453.66290683,0.00011879,2]
[323723876,1714203039619,-335.43687771,0.00011879,2]
[323723877,1714203039629,-367.27466341,0.00011879,2]
[323723878,1714203039639,-500.0,0.00011879,2]
[323723879,1714203039649,-500.0,0.00011879,2]
[323723880,1714203039660,-177.63975844,0.00011879,2]
[323723881,1714203039670,-404.3485602,0.00011879,2]
[323723882,1714203039682,-602.45047206,0.00011879,2]
[323723883,1714203039693,-500.0,0.00011879,2]
[323723884,1714203039704,-500.0,0.00011879,2]
[323723885,1714203039715,-500.0,0.00011879,2]
[323723886,1714203039725,-840.77,0.00011879,2]
[323723887,1714203039735,-513.23362021,0.00011879,2]
[323723888,1714203039746,-727.97,0.00011879,2]
[323723889,1714203039757,-500.0,0.00011879,2]
[323723890,1714203039767,-370.93,0.00011879,2]
[323723891,1714203039778,-500.0,0.00011879,2]
[323723892,1714203039789,-150.0,0.00011879,2]
[323723893,1714203039800,-500.0,0.00011879,2]
[323723894,1714203039810,-189.51571962,0.00011879,2]
[323723895,1714203039820,-500.0,0.00011879,2]
[323723896,1714203039831,-500.0,0.00011879,2]
[323723897,1714203039841,-505.34799406,0.00011879,2]
[323723898,1714203039851,-500.0,0.00011879,2]
[323723899,1714203039861,-500.0,0.00011879,2]
[323723900,1714203039877,-598.2172637,0.00011879,2]
[323723901,1714203039912,-500.0,0.00011879,2]
[323723902,1714203039923,-252.98,0.00011879,2]
[323723903,1714203039934,-630.98170875,0.00011879,2]
[323723904,1714203039945,-326.39734307,0.00011879,2]
[323723905,1714203039956,-500.0,0.00011879,2]
[323723906,1714203039967,-500.0,0.00011879,2]
[323723907,1714203039977,-376.45501078,0.00011879,2]
[323723908,1714203039989,-500.0,0.00011879,2]
[323723909,1714203040000,-500.0,0.00011879,2]
[323723910,1714203040010,-500.0,0.00011879,2]
[323723911,1714203040021,-500.0,0.00011879,2]
[323723912,1714203040032,-281.34,0.00011879,2]
[323723913,1714203040042,-234.94260701,0.00011879,2]
[323723914,1714203040053,-500.0,0.00011879,2]
[323723915,1714203040064,-500.0,0.00011879,2]
[323723916,1714203040075,-500.0,0.00011879,2]
[323723917,1714203040086,-500.0,0.00011879,2]
[323723918,1714203040097,-500.0,0.00011879,2]
[323723919,1714203040109,-500.0,0.00011879,2]
[323723920,1714203040120,-500.0,0.00011879,2]
[323723921,1714203040130,-500.0,0.00011879,2]
[323723922,1714203040141,-425.29151896,0.00011879,2]
[323723923,1714203040152,-1158.96,0.00011879,2]
[323723924,1714203040163,-649.1,0.00011879,2]
[323723925,1714203040174,-686.82,0.00011879,2]
[323723926,1714203040186,-500.0,0.00011879,2]
[323723927,1714203040196,-500.0,0.00011879,2]
[323723928,1714203040206,-500.0,0.00011879,2]
[323723929,1714203040217,-500.0,0.00011879,2]
[323723930,1714203040228,-500.0,0.00011879,2]
[323723931,1714203040239,-500.0,0.00011879,2]
[323723932,1714203040250,-500.0,0.00011879,2]
[323723933,1714203040262,-913.01,0.00011879,2]
[323723934,1714203040272,-1631.66,0.00011879,2]
[323723935,1714203040283,-500.0,0.00011879,2]
[323723936,1714203040294,-500.0,0.00011879,2]
[323723937,1714203040305,-500.0,0.00011879,2]
[323723938,1714203040315,-500.0,0.00011879,2]
[323723939,1714203040325,-500.0,0.00011879,2]
[323723940,1714203040337,-513.41812993,0.00011879,2]
[323723941,1714203040348,-1204.35,0.00011879,2]
[323723942,1714203040358,-500.0,0.00011879,2]
[323723943,1714203040368,-500.0,0.00011879,2]
[323723944,1714203040380,-500.0,0.00011879,2]
[323723946,1714203040391,-500.0,0.00011879,2]
[323723948,1714203040401,-500.0,0.00011879,2]
[323723949,1714203040412,-500.0,0.00011879,2]
[323723950,1714203040423,-500.0,0.00011879,2]
[323723951,1714203040435,-500.0,0.00011879,2]
[323723952,1714203040445,-884.06,0.00011879,2]
[323723953,1714203040456,-500.0,0.00011879,2]
[323723954,1714203040468,-500.0,0.00011879,2]
[323723955,1714203040482,-500.0,0.00011879,2]
[323723956,1714203040493,-769.66,0.00011879,2]
[323723957,1714203040504,-550.18351553,0.00011879,2]
[323723958,1714203040514,-780.41,0.00011879,2]
[323723959,1714203040526,-356.06,0.00011879,2]
[323723960,1714203040536,-500.0,0.00011879,2]
[323723961,1714203040547,-500.0,0.00011879,2]
[323723962,1714203040557,-500.0,0.00011879,2]
[323723963,1714203040568,-627.86,0.00011879,2]
[323723964,1714203040578,-500.0,0.00011879,2]
[323723965,1714203040589,-500.0,0.00011879,2]
[323723966,1714203040600,-500.0,0.00011879,2]
[323723967,1714203040610,-500.0,0.00011879,2]
[323723968,1714203040620,-500.0,0.00011879,2]
[323723969,1714203040630,-500.0,0.00011879,2]
[323723970,1714203040641,-500.0,0.00011879,2]
[323723971,1714203040651,-500.0,0.00011879,2]
[323723972,1714203040661,-500.0,0.00011879,2]
[323723973,1714203040671,-500.0,0.00011879,2]
[323723974,1714203040681,-500.0,0.00011879,2]
[323723975,1714203040692,-500.0,0.00011879,2]
[323723976,1714203040702,-500.0,0.00011879,2]
[323723977,1714203040711,-597.64,0.00011879,2]
[323723978,1714203040723,-500.0,0.00011879,2]
[323723979,1714203040734,-584.26,0.00011879,2]
[323723980,1714203040744,-500.0,0.00011879,2]
[323723981,1714203040755,-500.0,0.00011879,2]
[323723982,1714203040766,-500.0,0.00011879,2]
[323723983,1714203040776,-1355.9,0.00011879,2]
[323723984,1714203040786,-500.0,0.00011879,2]
[323723985,1714203040796,-500.0,0.00011879,2]
[323723986,1714203041095,-500.0,0.00011879,2]
[323723987,1714203041113,-573.89649137,0.00011879,2]
[323723988,1714203041123,-500.0,0.00011879,2]
[323723989,1714203041133,-500.0,0.00011879,2]
[323723990,1714203041143,-500.0,0.00011879,2]
[323723991,1714203041153,-790.79,0.00011879,2]
[323723992,1714203041163,-500.0,0.00011879,2]
[323723993,1714203041172,-500.0,0.00011879,2]
[323723994,1714203041181,-869.93,0.00011879,2]
[323723995,1714203041191,-500.0,0.00011879,2]
[323723996,1714203041200,-500.0,0.00011879,2]
[323723997,1714203041208,-500.0,0.00011879,2]
[323723998,1714203041217,-500.0,0.00011879,2]
[323723999,1714203041226,-500.0,0.00011879,2]
[323724000,1714203041236,-1638.4,0.00011879,2]
[323724001,1714203041247,-500.0,0.00011879,2]
[323724002,1714203041257,-564.86582188,0.00011879,2]
[323724003,1714203041266,-500.0,0.00011879,2]
[323724004,1714203041276,-500.0,0.00011879,2]